fUSD/lending_fUSD_20240222
["ID","MTS","AMOUNT","RATE_DAILY","PERIOD"]
[314836681,1708582248455,-500.0,0.00035616,2]
[314836683,1708582248464,-500.0,0.00035616,2]
[314836685,1708582248474,-500.0,0.00035616,2]
[314836687,1708582248484,-500.0,0.00035616,2]
[314836689,1708582248493,-500.0,0.00035616,2]
[314836691,1708582248503,-500.0,0.00035616,2]
[314836693,1708582248513,-500.0,0.00035616,2]
[314836695,1708582248522,-500.0,0.00035616,2]
[314836697,1708582248531,-500.0,0.00035616,2]
[314836699,1708582248541,-590.44,0.00035616,2]
[314836701,1708582248550,-500.0,0.00035616,2]
[314836703,1708582248559,-500.0,0.00035616,2]
[314836705,1708582248569,-500.0,0.00035616,2]
[314836708,1708582248578,-500.0,0.00035616,2]
[314836710,1708582248589,-500.0,0.00035616,2]
[314836712,1708582248599,-900.97,0.00035616,2]
[314836714,1708582248608,-500.0,0.00035616,2]
[314836716,1708582248618,-502.05055045,0.00035616,2]
[314836718,1708582248627,-500.0,0.00035616,2]
[314836720,1708582248636,-558.07,0.00035616,2]
[314836722,1708582248646,-500.0,0.00035616,2]
[314836724,1708582248655,-500.0,0.00035616,2]
[314836726,1708582248665,-500.0,0.00035616,2]
[314836728,1708582248674,-1110.96,0.00035616,2]
[314836730,1708582248684,-500.0,0.00035616,2]
[314836732,1708582248694,-500.0,0.00035616,2]
[314836734,1708582248703,-500.0,0.00035616,2]
[314836736,1708582248713,-554.82,0.00035616,2]
[314836738,1708582248722,-500.0,0.00035616,2]
[314836740,1708582248731,-500.0,0.00035616,2]
[314836742,1708582248741,-500.0,0.00035616,2]
[314836744,1708582248750,-846.49,0.00035616,2]
[314836746,1708582248760,-500.0,0.00035616,2]
[314836748,1708582248769,-500.0,0.00035616,2]
[314836750,1708582248778,-500.0,0.00035616,2]
[314836752,1708582248787,-500.0,0.00035616,2]
[314836754,1708582248796,-500.0,0.00035616,2]
[314836756,1708582248805,-500.0,0.00035616,2]
[314836758,1708582248814,-503.33471903,0.00035616,2]
[314836760,1708582248824,-500.0,0.00035616,2]
[314836762,1708582248838,-500.0,0.00035616,2]
[314836764,1708582248847,-505.02081246,0.00035616,2]
[314836766,1708582248856,-500.0,0.00035616,2]
[314836768,1708582248866,-500.0,0.00035616,2]
[314836770,1708582248876,-500.0,0.00035616,2]
[314836772,1708582248885,-500.0,0.00035616,2]
[314836774,1708582248894,-500.0,0.00035616,2]
[314836776,1708582248904,-500.0,0.00035616,2]
[314836778,1708582248915,-591.29859165,0.00035616,2]
[314836780,1708582248924,-500.0,0.00035616,2]
[314836782,1708582248933,-9527.74980193,0.00035616,3]
[314836785,1708582248943,-508.97625946,0.00035616,2]
[314836787,1708582248952,-670.25,0.00035616,2]
[314836789,1708582248961,-1000.0,0.00035616,7]
[314836791,1708582248970,-500.0,0.00035616,2]
[314836793,1708582248980,-570.22,0.00035616,2]
[314836795,1708582248989,-500.0,0.00035616,2]
[314836797,1708582248998,-436.68659243,0.00035616,2]
[314836798,1708582249008,-500.0,0.00035616,2]
[314836801,1708582249018,-867.96,0.00035616,2]
[314836803,1708582249027,-500.0,0.00035616,2]
[314836805,1708582249036,-500.0,0.00035616,2]
[314836807,1708582249046,-500.0,0.00035616,2]
[314836809,1708582249055,-509.47241412,0.00035616,2]
[314836811,1708582249065,-685.13,0.00035616,2]
[314836813,1708582249074,-500.0,0.00035616,2]
[314836815,1708582249083,-505.10433456,0.00035616,2]
[314836817,1708582249094,-500.0,0.00035616,2]
[314836819,1708582249103,-500.0,0.00035616,2]
[314836821,1708582249112,-910.54,0.00035616,2]
[314836823,1708582249122,-515.93,0.00035616,2]
[314836825,1708582249131,-500.0,0.00035616,2]
[314836827,1708582249141,-868.98,0.00035616,2]
[314836829,1708582249151,-500.0,0.00035616,2]
[314836831,1708582249160,-501.78904251,0.00035616,2]
[314836833,1708582249169,-509.73893896,0.00035616,2]
[314836835,1708582249178,-500.0,0.00035616,2]
[314836837,1708582249187,-500.0,0.00035616,2]
[314836839,1708582249196,-508.74945498,0.00035616,2]
[314836841,1708582249205,-527.92364051,0.00035616,2]
[314836843,1708582249215,-301.18412567,0.00035616,2]
[314836844,1708582249225,-500.0,0.00035616,2]
[314836845,1708582249234,-500.0,0.00035616,2]
[314836846,1708582249244,-500.0,0.00035616,2]
[314836847,1708582249254,-517.8305273,0.00035616,2]
[314836848,1708582249268,-500.0,0.00035616,2]
[314836849,1708582249278,-503.54789715,0.00035616,2]
[314836850,1708582249289,-543.41,0.00035616,2]
[314836851,1708582249298,-500.0,0.00035616,2]
[314836853,1708582249452,-500.0,0.00035616,2]
[314836854,1708582249461,-500.0,0.00035616,2]
[314836855,1708582249471,-500.0,0.00035616,2]
[314836856,1708582249481,-859.65,0.00035616,2]
[314836857,1708582249490,-500.0,0.00035616,2]
[314836858,1708582249499,-500.0,0.00035616,2]
[314836859,1708582249508,-500.0,0.00035616,2]
[314836860,1708582249518,-867.94,0.00035616,2]
[314836861,1708582249527,-1578.49,0.00035616,2]
[314836862,1708582249536,-500.0,0.00035616,2]
[314836863,1708582249545,-500.0,0.00035616,2]
[314836864,1708582249554,-500.0,0.00035616,2]
[314836865,1708582249564,-2369.7,0.00035616,2]
[314836866,1708582249573,-500.0,0.00035616,2]
[314836867,1708582249582,-500.0,0.00035616,2]
[314836868,1708582249591,-500.0,0.00035616,2]
[314836869,1708582249600,-509.29648016,0.00035616,2]
[314836870,1708582249609,-506.7229604,0.00035616,2]
[314836871,1708582249618,-591.7,0.00035616,2]
[314836872,1708582249627,-500.0,0.00035616,2]
[314836873,1708582249636,-500.0,0.00035616,2]
[314836874,1708582249645,-500.0,0.00035616,2]
[314836875,1708582249654,-500.0,0.00035616,2]
[314836876,1708582249664,-500.0,0.00035616,2]
[314836877,1708582249673,-500.0,0.00035616,2]
[314836879,1708582249682,-509.52148808,0.00035616,2]
[314836881,1708582249691,-590.37,0.00035616,2]
[314836882,1708582249701,-500.0,0.00035616,2]
[314836883,1708582249710,-500.0,0.00035616,2]
[314836885,1708582249719,-500.0,0.00035616,2]
[314836886,1708582249728,-500.0,0.00035616,2]
[314836887,1708582249738,-500.0,0.00035616,2]
[314836888,1708582249747,-500.0,0.00035616,2]
[314836889,1708582249756,-500.0,0.00035616,2]
[314836890,1708582249766,-555.68,0.00035616,2]
[314836891,1708582249775,-500.0,0.00035616,2]
[314836892,1708582249785,-500.0,0.00035616,2]
[314836893,1708582249794,-500.0,0.00035616,2]
[314836894,1708582249803,-500.0,0.00035616,2]
[314836895,1708582249812,-500.0,0.00035616,2]
[314836896,1708582249821,-1199.77,0.00035616,2]
[314836897,1708582249831,-500.0,0.00035616,2]
[314836898,1708582249844,-500.0,0.00035616,2]
[314836899,1708582249854,-500.0,0.00035616,2]
[314836900,1708582249863,-500.0,0.00035616,2]
[314836901,1708582249872,-500.0,0.00035616,2]
[314836902,1708582249882,-500.0,0.00035616,2]
[314836903,1708582249891,-500.0,0.00035616,2]
[314836904,1708582249900,-488.04757882,0.00035616,2]
[314836905,1708582249910,-527.84,0.00035616,2]
[314836906,1708582249919,-500.0,0.00035616,2]
[314836907,1708582249929,-500.0,0.00035616,2]
[314836908,1708582249939,-500.0,0.00035616,2]
[314836909,1708582249948,-506.54319512,0.00035616,2]
[314836910,1708582249957,-500.0,0.00035616,2]
[314836911,1708582249966,-502.98815346,0.00035616,2]
[314836912,1708582249976,-500.0,0.00035616,2]
[314836913,1708582249985,-540.16847661,0.00035616,2]
[314836914,1708582249994,-500.0,0.00035616,2]
[314836915,1708582250004,-500.0,0.00035616,2]
[314836916,1708582250014,-728.89,0.00035616,2]
[314836917,1708582250023,-500.0,0.00035616,2]
[314836918,1708582250033,-503.96225188,0.00035616,2]
[314836919,1708582250043,-500.0,0.00035616,2]
[314836920,1708582250053,-500.0,0.00035616,2]
[314836921,1708582250063,-500.0,0.00035616,2]
[314836922,1708582250072,-500.0,0.00035616,2]
[314836923,1708582250082,-500.0,0.00035616,2]
[314836924,1708582250093,-641.26,0.00035616,2]
[314836925,1708582250102,-1075.46,0.00035616,2]
[314836926,1708582250111,-1570.65,0.00035616,2]
[314836927,1708582250121,-514.2488062,0.00035616,2]
[314836928,1708582250130,-500.0,0.00035616,2]
[314836929,1708582250139,-881.78,0.00035616,2]
[314836930,1708582250149,-751.66,0.00035616,2]
[314836931,1708582250158,-500.0,0.00035616,2]
[314836932,1708582250168,-500.0,0.00035616,2]
[314836933,1708582250178,-500.0,0.00035616,2]
[314836934,1708582250187,-500.0,0.00035616,2]
[314836935,1708582250196,-500.0,0.00035616,2]
[314836936,1708582250206,-500.0,0.00035616,2]
[314836937,1708582250215,-500.0,0.00035616,2]
[314836938,1708582250225,-644.22,0.00035616,2]
[314836939,1708582250234,-500.0,0.00035616,2]
[314836940,1708582250244,-506.82189468,0.00035616,2]
[314836941,1708582250253,-619.07,0.00035616,2]
[314836942,1708582250263,-500.0,0.00035616,2]
[314836943,1708582250273,-500.0,0.00035616,2]
[314836944,1708582250282,-500.0,0.00035616,2]
[314836945,1708582250292,-500.0,0.00035616,2]
[314836946,1708582250301,-500.0,0.00035616,2]
[314836947,1708582250311,-503.09180524,0.00035616,2]
[314836948,1708582250320,-500.0,0.00035616,2]
[314836949,1708582250329,-500.0,0.00035616,2]
[314836950,1708582250338,-500.0,0.00035616,2]
[314836951,1708582250348,-500.0,0.00035616,2]
[314836952,1708582250357,-500.0,0.00035616,2]
[314836953,1708582250367,-500.0,0.00035616,2]
[314836954,1708582250376,-500.0,0.00035616,2]
[314836955,1708582250385,-1303.82,0.00035616,2]
[314836956,1708582250394,-500.0,0.00035616,2]
[314836957,1708582250403,-503.27344842,0.00035616,2]
[314836958,1708582250413,-500.0,0.00035616,2]
[314836959,1708582250422,-500.0,0.00035616,2]
[314836960,1708582250431,-500.0,0.00035616,2]
[314836961,1708582250441,-500.0,0.00035616,2]
[314836962,1708582250450,-500.0,0.00035616,2]
[314836963,1708582250460,-500.0,0.00035616,2]
[314836964,1708582250469,-500.0,0.00035616,2]
[314836965,1708582250480,-612.06,0.00035616,2]
[314836966,1708582250489,-956.61,0.00035616,2]
[314836967,1708582250499,-500.0,0.00035616,2]
[314836968,1708582250509,-701.99,0.00035616,2]
[314836969,1708582250518,-500.0,0.00035616,2]
[314836970,1708582250527,-500.0,0.00035616,2]
[314836971,1708582250537,-1044.69,0.00035616,2]
[314836972,1708582250546,-500.0,0.00035616,2]
[314836973,1708582250555,-507.35268548,0.00035616,2]
[314836974,1708582250564,-500.0,0.00035616,2]
[314836975,1708582250573,-500.0,0.00035616,2]
[314836976,1708582250582,-634.84,0.00035616,2]
[314836977,1708582250592,-500.0,0.00035616,2]
[314836978,1708582250601,-598.8846773,0.00035616,2]
[314836979,1708582250610,-503.10859555,0.00035616,2]
[314836980,1708582250619,-500.0,0.00035616,2]
[314836981,1708582250629,-489.17150158,0.00035616,2]
[314836982,1708582250638,-1074.62,0.00035616,2]
[314836983,1708582250647,-500.0,0.00035616,2]
[314836984,1708582250656,-500.0,0.00035616,2]
[314836985,1708582250665,-754.45,0.00035616,2]
[314836986,1708582250674,-826.06,0.00035616,2]
[314836987,1708582250683,-500.0,0.00035616,2]
[314836988,1708582250692,-769.06,0.00035616,2]
[314836989,1708582250701,-644.17,0.00035616,2]
[314836990,1708582250709,-500.0,0.00035616,2]
[314836991,1708582250719,-500.0,0.00035616,2]
[314836992,1708582250728,-500.0,0.00035616,2]
[314836993,1708582250737,-535.86,0.00035616,2]
[314836994,1708582250746,-500.0,0.00035616,2]
[314836995,1708582250755,-500.0,0.00035616,2]
[314836996,1708582250765,-492.78660059,0.00035616,2]
[314836997,1708582250774,-500.0,0.00035616,2]
[314836998,1708582250782,-500.0,0.00035616,2]
[314836999,1708582250792,-500.0,0.00035616,2]
[314837000,1708582250801,-500.0,0.00035616,2]
[314837001,1708582250810,-914.5,0.00035616,2]
[314837002,1708582250819,-500.0,0.00035616,2]
[314837003,1708582250829,-500.0,0.00035616,2]
[314837004,1708582250842,-595.28,0.00035616,2]
[314837005,1708582250851,-500.0,0.00035616,2]
[314837006,1708582250860,-547.16805592,0.00035616,2]
[314837007,1708582250869,-1772.15,0.00035616,2]
[314837008,1708582250881,-500.0,0.00035616,2]
[314837009,1708582250889,-500.0,0.00035616,2]
[314837010,1708582250898,-500.0,0.00035616,2]
[314837011,1708582250907,-500.0,0.00035616,2]
[314837012,1708582250917,-500.0,0.00035616,2]
[314837013,1708582250926,-356.72759068,0.00035616,2]
[314837014,1708582250935,-651.49,0.00035616,2]
[314837015,1708582250944,-535.22507736,0.00035616,2]
[314837016,1708582250954,-503.38336846,0.00035616,2]
[314837017,1708582250963,-502.16226662,0.00035616,2]
[314837018,1708582250971,-500.0,0.00035616,2]
[314837019,1708582250981,-723.85,0.00035616,2]
[314837020,1708582250990,-500.0,0.00035616,2]
[314837021,1708582251000,-500.0,0.00035616,2]
[314837022,1708582251010,-500.0,0.00035616,2]
[314837023,1708582251019,-981.32,0.00035616,2]
[314837024,1708582251029,-500.0,0.00035616,2]
[314837025,1708582251038,-500.0,0.00035616,2]
[314837026,1708582251047,-500.0,0.00035616,2]
[314837027,1708582251057,-1332.27,0.00035616,2]
[314837028,1708582251066,-500.0,0.00035616,2]
[314837029,1708582251075,-500.0,0.00035616,2]
[314837030,1708582251085,-500.0,0.00035616,2]
[314837031,1708582251095,-500.0,0.00035616,2]
[314837032,1708582251104,-500.0,0.00035616,2]
[314837033,1708582251114,-500.0,0.00035616,2]
[314837034,1708582251123,-500.0,0.00035616,2]
[314837035,1708582251132,-500.0,0.00035616,2]
[314837036,1708582251141,-500.0,0.00035616,2]
[314837037,1708582251150,-500.0,0.00035616,2]
[314837038,1708582251159,-753.46,0.00035616,2]
[314837039,1708582251169,-1439.67,0.00035616,2]
[314837040,1708582251178,-500.0,0.00035616,2]
[314837041,1708582251188,-500.0,0.00035616,2]
[314837042,1708582251197,-1431.54,0.00035616,2]
[314837043,1708582251206,-500.0,0.00035616,2]
[314837044,1708582251216,-500.0,0.00035616,2]
[314837045,1708582251225,-609.44,0.00035616,2]
[314837046,1708582251234,-500.0,0.00035616,2]
[314837047,1708582251244,-550.65,0.00035616,2]
[314837048,1708582251253,-500.0,0.00035616,2]
[314837049,1708582251262,-500.0,0.00035616,2]
[314837050,1708582251271,-500.0,0.00035616,2]
[314837051,1708582251281,-1075.01,0.00035616,2]
[314837052,1708582251290,-500.0,0.00035616,2]
[314837053,1708582251300,-500.0,0.00035616,2]
[314837054,1708582251309,-500.0,0.00035616,2]
[314837055,1708582251319,-506.14159084,0.00035616,2]
[314837056,1708582251327,-500.0,0.00035616,2]
[314837057,1708582251337,-500.0,0.00035616,2]
[314837058,1708582251347,-508.12858644,0.00035616,2]
[314837059,1708582251356,-1309.23,0.00035616,2]
[314837060,1708582251366,-524.8661905,0.00035616,2]
[314837061,1708582251375,-998.09,0.00035616,2]
[314837062,1708582251384,-500.0,0.00035616,2]
[314837063,1708582251393,-537.75,0.00035616,2]
[314837064,1708582251402,-520.86613259,0.00035616,2]
[314837065,1708582251411,-500.0,0.00035616,2]
[314837066,1708582251421,-894.66,0.00035616,2]
[314837067,1708582251430,-600.16630431,0.00035616,2]
[314837068,1708582251439,-500.0,0.00035616,2]
[314837069,1708582251449,-519.34928837,0.00035616,2]
[314837070,1708582251458,-500.0,0.00035616,2]
[314837071,1708582251468,-1000.0,0.00035616,7]
[314837072,1708582251477,-881.41,0.00035616,2]
[314837073,1708582251487,-500.0,0.00035616,2]
[314837074,1708582251496,-500.0,0.00035616,2]
[314837075,1708582251505,-500.0,0.00035616,2]
[314837076,1708582251515,-500.0,0.00035616,2]
[314837077,1708582251524,-500.0,0.00035616,2]
[314837078,1708582251534,-500.0,0.00035616,2]
[314837079,1708582251543,-500.0,0.00035616,2]
[314837080,1708582251553,-500.0,0.00035616,2]
[314837081,1708582251562,-500.0,0.00035616,2]
[314837082,1708582251571,-500.0,0.00035616,2]
[314837083,1708582251580,-2998.98,0.00035616,2]
[314837084,1708582251590,-505.69573042,0.00035616,2]
[314837085,1708582251600,-150.0,0.00035616,2]
[314837086,1708582251609,-500.0,0.00035616,2]
[314837087,1708582251618,-500.0,0.00035616,2]
[314837088,1708582251627,-3317.13,0.00035616,2]
[314837089,1708582251636,-500.0,0.00035616,2]
[314837090,1708582251646,-500.0,0.00035616,2]
[314837091,1708582251655,-500.0,0.00035616,2]
[314837092,1708582251664,-500.0,0.00035616,2]
[314837093,1708582251673,-500.0,0.00035616,2]
[314837094,1708582251683,-500.0,0.00035616,2]
[314837095,1708582251692,-500.0,0.00035616,2]
[314837096,1708582251701,-500.0,0.00035616,2]
[314837097,1708582251710,-1509.54,0.00035616,2]
[314837098,1708582251720,-500.0,0.00035616,2]
[314837099,1708582251729,-1011.41,0.00035616,2]
[314837100,1708582251738,-512.64647934,0.00035616,2]
[314837101,1708582251747,-891.93,0.00035616,2]
[314837102,1708582251756,-500.0,0.00035616,2]
[314837103,1708582251765,-500.0,0.00035616,2]
[314837104,1708582251775,-1189.11,0.00035616,2]
[314837105,1708582251785,-8797.78,0.00035616,2]
[314837106,1708582251794,-500.0,0.00035616,2]
[314837107,1708582251803,-500.0,0.00035616,2]
[314837108,1708582251813,-500.0,0.00035616,2]
[314837109,1708582251822,-500.0,0.00035616,2]
[314837110,1708582251835,-500.0,0.00035616,2]
[314837111,1708582251844,-500.0,0.00035616,2]
[314837112,1708582251853,-1199.25,0.00035616,2]
[314837113,1708582251862,-500.0,0.00035616,2]
[314837114,1708582251871,-500.0,0.00035616,2]
[314837115,1708582251881,-5000.0,0.00035616,2]
[314837116,1708582251890,-8455.5,0.00035616,2]
[314837117,1708582251899,-1311.17,0.00035616,2]
[314837118,1708582251908,-500.0,0.00035616,2]
[314837119,1708582251918,-500.0,0.00035616,2]
[314837120,1708582251927,-956.33,0.00035616,2]
[314837121,1708582251935,-500.0,0.00035616,2]
[314837122,1708582251945,-500.0,0.00035616,2]
[314837123,1708582251954,-675.58,0.00035616,2]
[314837124,1708582251963,-500.0,0.00035616,2]
[314837125,1708582251973,-500.0,0.00035616,2]
[314837126,1708582251982,-500.0,0.00035616,2]
[314837127,1708582251992,-23168.45,0.00035616,2]
[314837128,1708582252002,-500.0,0.00035616,2]
[314837129,1708582252011,-503.0975203,0.00035616,2]
[314837130,1708582252020,-9707.65,0.00035616,2]
[314837131,1708582252030,-500.0,0.00035616,2]
[314837132,1708582252040,-500.0,0.00035616,2]
[314837133,1708582252049,-726.04,0.00035616,2]
[314837134,1708582252059,-500.0,0.00035616,2]
[314837135,1708582252068,-500.0,0.00035616,2]
[314837136,1708582252076,-1918.3,0.00035616,2]
[314837137,1708582252086,-500.0,0.00035616,2]
[314837138,1708582252095,-500.0,0.00035616,2]
[314837139,1708582252104,-500.0,0.00035616,2]
[314837140,1708582252113,-1502.18,0.00035616,2]
[314837141,1708582252123,-500.0,0.00035616,2]
[314837142,1708582252132,-522.33,0.00035616,2]
[314837143,1708582252141,-3740.13,0.00035616,2]
[314837144,1708582252151,-921.81,0.00035616,2]
[314837145,1708582252160,-500.0,0.00035616,2]
[314837146,1708582252169,-500.0,0.00035616,2]
[314837147,1708582252178,-500.0,0.00035616,2]
[314837148,1708582252188,-500.0,0.00035616,2]
[314837149,1708582252197,-500.0,0.00035616,2]
[314837150,1708582252206,-690.93,0.00035616,2]
[314837151,1708582252215,-500.0,0.00035616,2]
[314837152,1708582252225,-500.0,0.00035616,2]
[314837153,1708582252234,-500.0,0.00035616,10]
[314837154,1708582252243,-538.21,0.00035616,2]
[314837155,1708582252253,-544.10048637,0.00035616,2]
[314837156,1708582252262,-500.0,0.00035616,2]
[314837157,1708582252271,-500.0,0.00035616,2]
[314837158,1708582252280,-500.0,0.00035616,2]
[314837159,1708582252289,-510.68997406,0.00035616,2]
[314837160,1708582252298,-500.0,0.00035616,2]
[314837161,1708582252307,-1578.35,0.00035616,2]
[314837162,1708582252316,-500.0,0.00035616,2]
[314837163,1708582252325,-508.14427686,0.00035616,2]
[314837164,1708582252335,-500.0,0.00035616,2]
[314837165,1708582252344,-500.0,0.00035616,2]
[314837166,1708582252353,-1678.0,0.00035616,2]
[314837167,1708582252362,-500.0,0.00035616,2]
[314837168,1708582252372,-510.86916188,0.00035616,2]
[314837169,1708582252381,-506.82024109,0.00035616,2]
[314837170,1708582252391,-500.0,0.00035616,2]
[314837171,1708582252400,-1568.0,0.00035616,2]
[314837172,1708582252409,-500.0,0.00035616,2]
[314837173,1708582252419,-500.0,0.00035616,2]
[314837174,1708582252428,-500.0,0.00035616,2]
[314837175,1708582252437,-1143.94,0.00035616,2]
[314837176,1708582252447,-500.0,0.00035616,2]
[314837177,1708582252456,-500.0,0.00035616,2]
[314837178,1708582252465,-1782.03,0.00035616,2]
[314837179,1708582252474,-546.02,0.00035616,2]
[314837180,1708582252483,-500.0,0.00035616,2]
[314837181,1708582252492,-1269.53,0.00035616,2]
[314837182,1708582252501,-828.35,0.00035616,2]
[314837183,1708582252510,-500.0,0.00035616,2]
[314837184,1708582252519,-500.0,0.00035616,2]
[314837185,1708582252528,-500.0,0.00035616,2]
[314837186,1708582252537,-993.28,0.00035616,2]
[314837187,1708582252546,-500.0,0.00035616,2]
[314837188,1708582252555,-500.0,0.00035616,2]
[314837189,1708582252563,-500.0,0.00035616,2]
[314837190,1708582252572,-1501.47,0.00035616,2]
[314837191,1708582252581,-500.0,0.00035616,2]
[314837192,1708582252590,-500.0,0.00035616,2]
[314837193,1708582252601,-500.0,0.00035616,2]
[314837194,1708582252610,-500.0,0.00035616,2]
[314837195,1708582252619,-758.7,0.00035616,2]
[314837196,1708582252628,-509.97483784,0.00035616,2]
[314837197,1708582252637,-500.0,0.00035616,2]
[314837198,1708582252646,-500.0,0.00035616,2]
[314837199,1708582252655,-500.0,0.00035616,2]
[314837200,1708582252664,-500.0,0.00035616,2]
[314837201,1708582252673,-500.0,0.00035616,2]
[314837202,1708582252682,-500.0,0.00035616,2]
[314837203,1708582252692,-500.0,0.00035616,2]
[314837204,1708582252701,-3726.92,0.00035616,2]
[314837205,1708582252710,-500.0,0.00035616,2]
[314837206,1708582252719,-500.0,0.00035616,2]
[314837207,1708582252728,-500.0,0.00035616,2]
[314837208,1708582252736,-500.0,0.00035616,2]
[314837209,1708582252745,-986.39,0.00035616,2]
[314837210,1708582252754,-864.58,0.00035616,2]
[314837211,1708582252763,-47764.36,0.00035616,2]
[314837212,1708582252772,-2378.24,0.00035616,2]
[314837213,1708582252781,-511.26864956,0.00035616,2]
[314837214,1708582252790,-500.0,0.00035616,2]
[314837215,1708582252798,-500.0,0.00035616,2]
[314837216,1708582252807,-500.0,0.00035616,2]
[314837217,1708582252817,-252.42,0.00035616,2]
[314837218,1708582252826,-500.0,0.00035616,2]
[314837219,1708582252837,-500.0,0.00035616,2]
[314837220,1708582252846,-500.0,0.00035616,2]
[314837221,1708582252855,-500.0,0.00035616,2]
[314837222,1708582252864,-500.0,0.00035616,2]
[314837223,1708582252875,-1462.74,0.00035616,2]
[314837224,1708582252884,-500.0,0.00035616,2]
[314837225,1708582252893,-1534.39,0.00035616,2]
[314837226,1708582252902,-652.04,0.00035616,2]
[314837227,1708582252912,-500.0,0.00035616,2]
[314837228,1708582252921,-500.0,0.00035616,2]
[314837229,1708582252930,-500.0,0.00035616,2]
[314837230,1708582252939,-500.0,0.00035616,2]
[314837231,1708582252948,-725.88,0.00035616,2]
[314837232,1708582252957,-500.0,0.00035616,2]
[314837233,1708582252966,-500.0,0.00035616,2]
[314837234,1708582252975,-500.0,0.00035616,2]
[314837235,1708582252984,-500.0,0.00035616,2]
[314837236,1708582252993,-787.62,0.00035616,2]
[314837237,1708582253002,-1440.14,0.00035616,2]
[314837238,1708582253011,-500.0,0.00035616,2]
[314837239,1708582253020,-529.98,0.00035616,2]
[314837240,1708582253029,-500.0,0.00035616,2]
[314837241,1708582253038,-8752.49,0.00035616,2]
[314837242,1708582253047,-500.0,0.00035616,2]
[314837243,1708582253056,-500.0,0.00035616,14]
[314837244,1708582253065,-500.0,0.00035616,2]
[314837245,1708582253075,-500.0,0.00035616,2]
[314837246,1708582253084,-1456.35,0.00035616,2]
[314837247,1708582253093,-1908.33,0.00035616,2]
[314837248,1708582253102,-500.0,0.00035616,2]
[314837249,1708582253111,-581.95,0.00035616,2]
[314837250,1708582253120,-500.0,0.00035616,2]
[314837251,1708582253129,-500.0,0.00035616,2]
[314837252,1708582253138,-500.0,0.00035616,2]
[314837253,1708582253147,-500.0,0.00035616,2]
[314837254,1708582253157,-500.0,0.00035616,2]
[314837255,1708582253166,-500.0,0.00035616,2]
[314837256,1708582253175,-405.88065044,0.00035616,2]
[314837257,1708582253184,-534.68529035,0.00035616,2]
[314837258,1708582253193,-500.0,0.00035616,2]
[314837259,1708582253203,-500.0,0.00035616,2]
[314837260,1708582253212,-834.5,0.00035616,2]
[314837261,1708582253222,-500.0,0.00035616,2]
[314837262,1708582253231,-500.0,0.00035616,2]
[314837263,1708582253241,-500.0,0.00035616,2]
[314837264,1708582253250,-500.0,0.00035616,2]
[314837265,1708582253259,-3265.95,0.00035616,2]
[314837266,1708582253268,-500.0,0.00035616,2]